[Event "40th Cappelle Open 2024"]
[Site "Cappelle-la-Grande"]
[Date "2024.03.06"]
[Round "6.17"]
[White "Degardin, Sylvain"]
[Black "Panjwani, Raja"]
[Result "0-1"]
[ECO "B32"]
[WhiteElo "2235"]
[BlackElo "2468"]
[Annotator "TA"]
[PlyCount "72"]
[EventDate "2024.03.02"]
[EventType "swiss"]
[EventCountry "FRA"]
[SourceTitle "playchess.com"]
[Source "ChessBase"]
[SourceQuality "1"]
[TimeControl "40/5400+30:1800+30"]

{[%evp 16,72,28,31,29,24,31,31,40,35,29,0,0,-35,-40,-32,-38,-33,-29,-37,-34,-41,-30,-30,-34,-34,-13,-14,-14,-5,-3,-62,-58,-33,-49,-75,-71,-488,-462,-2157,-2116,-1969,-1986,-1940,-1733,-1555,-1433,-6088,-5065,-29960,-29961,-29973,-12846,-29974,-29975,-29978,-29979,-29979,-29980]} 1. e4 {[%emt 0:00:03]} c5 {[%emt 0:04:50]} 2. Nf3 {[%emt 0:00:22][%cal Bg1f3,Bf3d4,Bd4b5,Bb5a3,Ba3c4,Bc4e3,Be3d5][%mdl 32]} Nc6 {[%emt 0:00:08]} 3. d4 {[%emt 0:00:29]} cxd4 {[%emt 0:00:06]} 4. Nxd4 {[%emt 0:00:07]} e5 {[%emt 0:01:32]} 5. Nb5 {[%emt 0:00:17]} d6 {[%emt 0:00:05]} 6. N1c3 {[%emt 0:00:22]} a6 {[%emt 0:00:05]} 7. Na3 {[%emt 0:00:14]} Be6 {[%emt 0:00:04]} 8. Nc4 {[%emt 0:01:47]} b5 {[%emt 0:00:17]} 9. Ne3 {[%emt 0:00:43]} Nf6 {[%emt 0:00:07]} 10. Bd3 {[%emt 0:20:32]} g6 {[%emt 0:00:27]} 11. O-O {[%emt 0:05:58]} Bg7 {[%emt 0:00:22] White is slightly better.} 12. Ned5 {[%emt 0:07:29]} O-O {[%emt 0:15:25]} 13. Bg5 {[%emt 0:10:35] Qf3 would now be deadly.} b4 {[%emt 0:00:51]} 14. Qf3 {[%emt 0:13:08]} bxc3 {[%emt 0:00:19]} 15. Nxf6+ {[%emt 0:04:26]} (15. Bxf6 $2 {loses.} Bxf6 16. Nxf6+ Kg7 $19) 15... Bxf6 {[%emt 0:00:31]} 16. Bxf6 {[%emt 0:01:09] [#]} Nd4 $1 {[%emt 0:00:11]} 17. Bxd8 {[%emt 0:00:40]} Nxf3+ {[%emt 0:00:08]} 18. gxf3 {[%emt 0:00:11] Threatens to win with Bc7.} cxb2 {[%emt 0:21:25]} 19. Rab1 {[%emt 0:00:24]} Rfxd8 {[%emt 0:00:10]} 20. Rxb2 {[%emt 0:00:14]} Rdb8 {[%emt 0:06:00]} 21. Rfb1 {[%emt 0:01:58]} Rxb2 {[%emt 0:00:09]} 22. Rxb2 $11 {[%emt 0:00:03][%mdl 4096] Endgame. KRB-KRB} a5 {[%emt 0:00:10]} 23. a3 {[%emt 0:08:04]} (23. Kg2 $11) 23... Rc8 $15 {[%emt 0:00:32] Strongly threatening ...Rc3.} 24. Rb5 {[%emt 0:01:54]} Rc5 {[%emt 0:00:42]} 25. Rxc5 {[%emt 0:01:45]} dxc5 {[%emt 0:00:06] KB-KB} 26. c4 $2 {[%emt 0:06:54][%mdl 8192] Now White is beyond hope.} (26. Bb5 $17 {is more resistant.}) 26... Bh3 $19 {[%emt 0:03:49]} 27. Bf1 {[%emt 0:00:50] [#]} (27. Bc2 $142) 27... Bxf1 $1 {[%emt 0:03:55]} 28. Kxf1 {[%emt 0:00:06] [#] KP-KP} Kg7 $1 {[%emt 0:00:30]} 29. Kg2 {[%emt 0:09:56]} Kh6 {[%emt 0:00:13]} 30. Kg3 {[%emt 0:01:06]} Kg5 {[%emt 0:00:10]} 31. a4 {[%emt 0:01:26]} f6 {[%emt 0:15:21]} 32. h3 {[%emt 0:00:47]} h6 {[%emt 0:01:06]} 33. h4+ {[%emt 0:01:28]} Kh5 {[%emt 0:00:06]} 34. Kh3 {[%emt 0:00:32]} g5 {[%emt 0:01:18] Black mates.} 35. f4 {[%emt 0:01:28]} exf4 {[%emt 0:02:33]} 36. f3 {[%emt 0:00:29]} Kg6 {[%emt 0:00:04] Weighted Error Value: White=1.30/Black=0.01 (flawless) .  Loses game:     	White=1     	---        Mistake:       	White=2     	---        Inaccurate:     	White=3     	---        OK:         	White=5     	Black=10     Best:        	White=2     	Black=3      Strong:       	---       	Black=2} 0-1

[Event "40th Cappelle Open 2024"]
[Site "Cappelle-la-Grande"]
[Date "2024.03.06"]
[Round "6.18"]
[White "Pourquet, Matthieu"]
[Black "Wirig, Anthony"]
[Result "1/2-1/2"]
[ECO "D10"]
[WhiteElo "2233"]
[BlackElo "2462"]
[Annotator "RC"]
[PlyCount "46"]
[EventDate "2024.03.02"]
[EventType "swiss"]
[EventCountry "FRA"]
[SourceTitle "playchess.com"]
[Source "ChessBase"]
[SourceQuality "1"]
[TimeControl "40/5400+30:1800+30"]

1. d4 {[%emt 0:00:04]} d5 {[%emt 0:01:40]} 2. c4 {[%emt 0:00:05]} c6 {[%emt 0:01:08]} 3. cxd5 {[%emt 0:00:13]} cxd5 {[%emt 0:00:07]} 4. Bf4 {[%emt 0:00:04]} Nf6 {[%emt 0:03:21]} 5. Nc3 {[%emt 0:01:10]} Nc6 {[%emt 0:01:38]} 6. e3 {[%emt 0:00:04]} Bg4 {[%emt 0:04:53]} 7. f3 {[%emt 0:00:14]} Bd7 {[%emt 0:01:45]} 8. Kf2 {[%emt 0:03:56]} a6 {[%emt 0:03:47]} 9. g4 {[%emt 0:00:49]} e6 {[%emt 0:01:47]} 10. h4 {[%emt 0:00:12]} Bb4 {[%emt 0:07:06]} 11. Nge2 {[%emt 0:04:42]} Qe7 {[%emt 0:09:32]} 12. a3 {[%emt 0:11:13]} Bd6 {[%emt 0:01:28]} 13. Bxd6 {[%emt 0:04:13]} Qxd6 {[%emt 0:01:15]} 14. Nf4 {[%emt 0:00:05]} Ng8 {[%emt 0:11:57]} 15. Qd2 {[%emt 0:15:26]} Nge7 {[%emt 0:01:40]} 16. Rd1 {[%emt 0:02:53]} Na7 {[%emt 0:11:32]} 17. h5 {[%emt 0:07:32]} h6 {[%emt 0:00:49]} 18. Rg1 {[%emt 0:00:13]} f6 {[%emt 0:05:15]} 19. Rc1 {[%emt 0:04:05]} Bc6 {[%emt 0:01:46]} 20. Bd3 {[%emt 0:01:24]} O-O-O {[%emt 0:04:27]} 21. Ng6 {[%emt 0:07:24]} Nxg6 {[%emt 0:00:59]} 22. Bxg6 {[%emt 0:00:03]} Kb8 {[%emt 0:00:19]} 23. Rg2 {[%emt 0:01:10]} e5 {[%emt 0:05:51]} 1/2-1/2

[Event "40th Cappelle Open 2024"]
[Site "Cappelle-la-Grande"]
[Date "2024.03.06"]
[Round "7.1"]
[White "Puranik, Abhimanyu"]
[Black "Lamard, Guillaume"]
[Result "1/2-1/2"]
[ECO "C55"]
[WhiteElo "2618"]
[BlackElo "2483"]
[Annotator "TA"]
[PlyCount "40"]
[EventDate "2024.03.02"]
[EventType "swiss"]
[EventCountry "FRA"]
[SourceTitle "playchess.com"]
[Source "ChessBase"]
[SourceQuality "1"]
[TimeControl "40/5400+30:1800+30"]

{[%evp 12,40,25,20,35,29,25,0,0,0,0,0,2,0,8,0,8,5,7,0,0,0,16,0,0,0,0,0,0,-17,0]} 1. e4 {[%emt 0:00:12]} e5 {[%emt 0:01:05]} 2. Nf3 {[%emt 0:00:06]} Nc6 {[%emt 0:00:03]} 3. Bc4 {[%emt 0:00:20]} Nf6 {[%emt 0:00:08]} 4. d3 {[%emt 0:00:07]} Be7 {[%emt 0:03:00]} 5. O-O {[%emt 0:00:24]} O-O {[%emt 0:00:12]} 6. h3 {[%emt 0:02:39]} d6 {[%emt 0:00:21]} 7. a4 {[%emt 0:00:06]} a5 {[%emt 0:01:22]} 8. Nc3 {[%emt 0:01:33]} Be6 {[%emt 0:00:47]} 9. Re1 {[%emt 0:01:36]} Bxc4 {[%emt 0:02:55] The position is equal.} 10. dxc4 {[%emt 0:00:05]} b6 {[%emt 0:02:47]} 11. Nd5 {[%emt 0:06:52]} Nb8 {[%emt 0:07:15][%cal Bc6b8,Bb8d7,Bd7c5][%mdl 32]} 12. c3 {[%emt 0:13:00]} Nbd7 {[%emt 0:04:01]} 13. Qc2 {[%emt 0:06:06]} Nc5 {[%emt 0:11:58]} 14. b4 {[%emt 0:01:47]} Ne6 {[%emt 0:11:22]} 15. Be3 {[%emt 0:11:46]} Nd7 {[%emt 0:02:39]} 16. Red1 {[%emt 0:04:14]} Qe8 {[%emt 0:02:12]} 17. Bc1 {[%emt 0:09:02]} Bd8 {[%emt 0:01:16]} 18. Ra2 {[%emt 0:06:28]} Kh8 {[%emt 0:00:23]} 19. Ne1 {[%emt 0:01:58]} Nf6 {[%emt 0:06:15]} 20. b5 {[%emt 0:12:49]} Ng8 {[%emt 0:40:29] Not much happened in this game.   Weighted Error Value: White=0.06 (flawless) /Black=0.04 (flawless) .  OK:         	White=3     	Black=8} 1/2-1/2

[Event "40th Cappelle Open 2024"]
[Site "Cappelle-la-Grande"]
[Date "2024.03.06"]
[Round "7.2"]
[White "Lodici, Lorenzo"]
[Black "Barp, Alberto"]
[Result "1/2-1/2"]
[ECO "C28"]
[WhiteElo "2558"]
[BlackElo "2449"]
[Annotator "RC"]
[PlyCount "67"]
[EventDate "2024.03.02"]
[EventType "swiss"]
[EventCountry "FRA"]
[SourceTitle "playchess.com"]
[Source "ChessBase"]
[SourceQuality "1"]
[TimeControl "40/5400+30:1800+30"]

1. e4 {[%emt 0:03:49]} e5 {[%emt 0:00:40]} 2. Bc4 {[%emt 0:03:16]} Nf6 {[%emt 0:01:00]} 3. d3 {[%emt 0:00:05]} Nc6 {[%emt 0:05:18]} 4. Nc3 {[%emt 0:01:10]} Na5 {[%emt 0:00:21]} 5. Qf3 {[%emt 0:01:44]} d6 {[%emt 0:03:35]} 6. h3 {[%emt 0:01:08]} Be7 {[%emt 0:01:16]} 7. Nge2 {[%emt 0:00:08]} O-O {[%emt 0:07:52]} 8. O-O {[%emt 0:12:08]} Nxc4 {[%emt 0:17:10]} 9. dxc4 {[%emt 0:00:09]} Be6 {[%emt 0:00:03]} 10. b3 {[%emt 0:02:18]} Nd7 {[%emt 0:00:47]} 11. Nd5 {[%emt 0:05:47]} Re8 {[%emt 0:13:27]} 12. Nxe7+ {[%emt 0:21:40]} Qxe7 {[%emt 0:00:09]} 13. Qg3 {[%emt 0:04:37]} Nc5 {[%emt 0:10:23]} 14. Nc3 {[%emt 0:00:14]} f5 {[%emt 0:01:26]} 15. exf5 {[%emt 0:09:37]} Bxf5 {[%emt 0:00:08]} 16. Nd5 {[%emt 0:00:03]} Qf7 {[%emt 0:17:52]} 17. f4 {[%emt 0:00:22]} c6 {[%emt 0:04:53]} 18. Ne3 {[%emt 0:01:43]} Qg6 {[%emt 0:04:10]} 19. Nxf5 {[%emt 0:05:02]} Qxf5 {[%emt 0:00:02]} 20. fxe5 {[%emt 0:00:25]} Qxe5 {[%emt 0:00:11]} 21. Bf4 {[%emt 0:03:04]} Qd4+ {[%emt 0:00:01]} 22. Kh2 {[%emt 0:00:05]} Ne4 {[%emt 0:00:08]} 23. Qd3 {[%emt 0:01:04]} Qxd3 {[%emt 0:03:34]} 24. cxd3 {[%emt 0:00:01]} Nf6 {[%emt 0:00:07]} 25. Bxd6 {[%emt 0:02:40]} Rad8 {[%emt 0:00:01]} 26. c5 {[%emt 0:02:08]} Re2 {[%emt 0:00:16]} 27. Rf4 {[%emt 0:03:32]} h6 {[%emt 0:07:42]} 28. a3 {[%emt 0:02:04]} Rd2 {[%emt 0:00:19]} 29. Raf1 {[%emt 0:04:54]} Re8 {[%emt 0:01:36]} 30. Rb4 {[%emt 0:02:32]} Ree2 {[%emt 0:00:05]} 31. Rg1 {[%emt 0:01:19]} b5 {[%emt 0:00:23]} 32. cxb6 {[%emt 0:00:10]} axb6 {[%emt 0:00:02]} 33. Rxb6 {[%emt 0:00:31]} Rxd3 {[%emt 0:00:04]} 34. Rxc6 {[%emt 0:08:01]} 1/2-1/2

[Event "40th Cappelle Open 2024"]
[Site "Cappelle-la-Grande"]
[Date "2024.03.06"]
[Round "7.3"]
[White "Velten, Paul"]
[Black "Can, Emre"]
[Result "1/2-1/2"]
[ECO "D44"]
[WhiteElo "2475"]
[BlackElo "2551"]
[Annotator "TA"]
[PlyCount "52"]
[EventDate "2024.03.02"]
[EventType "swiss"]
[EventCountry "FRA"]
[SourceTitle "playchess.com"]
[Source "ChessBase"]
[SourceQuality "1"]
[TimeControl "40/5400+30:1800+30"]

{[%evp 23,52,49,93,28,31,24,25,21,20,29,18,21,5,8,12,-22,50,41,45,12,0,7,7,5,30,0,0,-88,-60,-62,-24]} 1. d4 {[%emt 0:00:15]} d5 {[%emt 0:00:16]} 2. c4 {[%emt 0:00:17]} e6 {[%emt 0:00:15]} 3. Nf3 {[%emt 0:00:20]} Nf6 {[%emt 0:00:43]} 4. Nc3 {[%emt 0:00:40]} c6 {[%emt 0:00:36]} 5. Bg5 {[%emt 0:00:45]} dxc4 {[%emt 0:00:45]} 6. e4 {[%emt 0:00:35][%cal Be2e4,Be4e5][%mdl 32]} b5 {[%emt 0:00:18]} 7. e5 {[%emt 0:00:21]} h6 {[%emt 0:00:26]} 8. Bh4 {[%emt 0:00:49]} g5 {[%emt 0:00:17]} 9. Nxg5 {[%emt 0:01:11]} hxg5 {[%emt 0:00:28]} 10. Bxg5 {[%emt 0:00:12]} Be7 {[%emt 0:00:23]} 11. exf6 {[%emt 0:06:10]} Bxf6 {[%emt 0:00:09]} 12. Bxf6 {[%emt 0:00:08]} Qxf6 {[%emt 0:00:07] [#]} 13. Be2 {[%emt 0:00:05]} ({Better is} 13. g3 $1 $16) 13... Nd7 $11 {[%emt 0:00:40]} 14. Qd2 {[%emt 0:04:57]} Bb7 {[%emt 0:07:32]} 15. Ne4 {[%emt 0:02:38] White has an edge.} Qe7 {[%emt 0:00:17]} 16. Qf4 {[%emt 0:00:24] Nd6+ would now be deadly.} Nb6 {[%emt 0:04:28]} ({Don't blunder} 16... Qb4+ $2 17. Kf1 $18) 17. Nd6+ {[%emt 0:02:31]} Kf8 {[%emt 0:00:49]} 18. Nxb7 {[%emt 0:03:41]} Qxb7 {[%emt 0:00:26]} 19. b3 {[%emt 0:00:16]} cxb3 {[%emt 0:02:39]} ({Black should play} 19... Qb8 $11 20. Qg5 (20. Qf6 Rxh2 21. O-O-O Nd5 $15) 20... Qd6) 20. axb3 $14 {[%emt 0:00:26]} Qe7 {[%emt 0:00:23]} 21. Qe5 {[%emt 0:08:36][%cal Re5h8] [#] Prevents Nd5.} Qb4+ {[%emt 0:03:46]} 22. Kf1 {[%emt 0:00:12]} Rh4 $132 {[%emt 0:02:53][%mdl 2048] Black has counterplay} 23. g4 {[%emt 0:06:11]} Nd5 {[%emt 0:06:39]} 24. Kg2 {[%emt 0:03:40]} Qd2 {[%emt 0:03:06] ...Nf4+ is the strong threat.} 25. Rhe1 {[%emt 0:03:13]} (25. Kg3 $11 f6 26. Qd6+ (26. Qxe6 $2 {perishes.} Rh3+ 27. Kxh3 Nf4+ 28. Kg3 Nxe6 $19) 26... Kf7 27. Kxh4) 25... Qh6 {[%emt 0:11:51]} 26. Bf3 {[%emt 0:11:54]} a5 {[%emt 0:12:38] Weighted Error Value: White=0.22 (precise) /Black=0.15 (very precise) .  Mistake:       	White=1     	Black=1      Inaccurate:     	White=3     	Black=2      OK:         	White=5     	Black=5      Best:        	White=1     	Black=1} (26... Nf4+ $5 27. Kg1 Rxh2 $15) 1/2-1/2

[Event "40th Cappelle Open 2024"]
[Site "Cappelle-la-Grande"]
[Date "2024.03.06"]
[Round "7.4"]
[White "Sasikiran, Krishnan"]
[Black "Pacher, Milan"]
[Result "1-0"]
[ECO "D20"]
[WhiteElo "2578"]
[BlackElo "2393"]
[Annotator "TA"]
[PlyCount "57"]
[EventDate "2024.03.02"]
[EventType "swiss"]
[EventCountry "FRA"]
[SourceTitle "playchess.com"]
[Source "ChessBase"]
[SourceQuality "1"]
[TimeControl "40/5400+30:1800+30"]

{[%evp 9,56,17,94,41,43,51,44,54,75,60,172,145,167,143,245,256,227,206,266,264,261,257,268,271,279,275,334,338,312,321,357,333,593,593,567,572,593,599,583,571,1282,1245,1529,1126,29993,29994,29998,29999,29999]} 1. d4 {[%emt 0:00:15]} d5 {[%emt 0:00:05]} 2. c4 {[%emt 0:00:20]} dxc4 {[%emt 0:00:05]} 3. e4 {[%emt 0:01:44]} e5 {[%emt 0:02:15]} 4. Nf3 {[%emt 0:00:35]} Bb4+ {[%emt 0:00:13]} 5. Nc3 {[%emt 0:03:41]} b5 {[%emt 0:15:58]} (5... exd4 $11 {keeps the balance.} 6. Qxd4 Qxd4 7. Nxd4 Nf6) 6. Nxe5 {[%emt 0:09:37]} ({White should try} 6. dxe5 $16 {Hoping for Qxd8+.} a6 7. a4) 6... Nf6 $14 {[%emt 0:00:31]} 7. f3 {[%emt 0:02:45]} O-O {[%emt 0:01:47]} 8. a4 {[%emt 0:07:08] White is slightly better.} c5 {[%emt 0:06:12]} 9. Be3 {[%emt 0:05:13]} Nbd7 {[%emt 0:21:47] Black is on the road to losing.} (9... cxd4 $14 10. Qxd4 Qe7 11. axb5 Rd8 12. Qxc4 Be6) 10. Nc6 $18 {[%emt 0:07:00]} ({Stronger than} 10. axb5 cxd4 11. Bxd4 Nxe5 12. Bxe5 Qe7 13. Bxf6 Qxf6 $15) 10... Qb6 {[%emt 0:02:42]} 11. d5 {[%emt 0:05:10] Nxb4 is the strong threat.} a5 {[%emt 0:01:49]} (11... Bxc3+ $16 {was necessary.} 12. bxc3 Re8) 12. axb5 {[%emt 0:07:37]} Qxb5 {[%emt 0:02:17]} 13. Be2 {[%emt 0:04:08]} Bb7 {[%emt 0:09:44]} 14. Nxb4 {[%emt 0:02:46]} Qxb4 {[%emt 0:00:03]} 15. O-O {[%emt 0:01:23]} Qxb2 {[%emt 0:04:26]} 16. Qc1 {[%emt 0:05:46]} Qxc1 {[%emt 0:05:26]} 17. Rfxc1 {[%emt 0:00:17]} ({Don't play} 17. Bxc1 Ne5 18. Bf4 Nfd7 $18) 17... Rfc8 {[%emt 0:00:44]} 18. Rcb1 {[%emt 0:01:30]} ({Don't do} 18. Bxc4 Ne5) 18... Ra7 {[%emt 0:02:14]} 19. Bxc4 {[%emt 0:01:30]} Ne8 {[%emt 0:00:04]} 20. Bf4 {[%emt 0:02:12] Black is weak on the light squares} f6 $2 {[%emt 0:01:05]} (20... h5 21. h3 Kh7) 21. Nb5 {[%emt 0:01:24]} Raa8 {[%emt 0:00:02] [#]} 22. Nc7 $1 {[%emt 0:03:26][%mdl 512]} Ra7 {[%emt 0:00:03]} 23. d6+ {[%emt 0:00:49]} Kh8 {[%emt 0:00:03]} 24. Bb5 {[%emt 0:00:14] Inhibits Bc6. A strong pair of Bishops.} Nxc7 {[%emt 0:01:03]} 25. Bxd7 {[%emt 0:00:11]} Rd8 {[%emt 0:00:04]} 26. dxc7 {[%emt 0:00:13]} Rxd7 {[%emt 0:00:03] [#]} 27. Rxb7 $1 {[%emt 0:00:08][%mdl 512] White mates.} Rxb7 {[%emt 0:00:02]} (27... h6 28. c8=Q+) 28. c8=Q+ {[%emt 0:00:17]} Rd8 {[%emt 0:00:02]} 29. Qxd8# {[%emt 0:00:07] Weighted Error Value: White=0.06 (flawless) /Black=0.58.  Mistake:       	---       	Black=3      Inaccurate:     	---       	Black=1      OK:         	White=13    	Black=5      Best:        	White=1     	Black=2} 1-0

[Event "40th Cappelle Open 2024"]
[Site "Cappelle-la-Grande"]
[Date "2024.03.06"]
[Round "7.5"]
[White "Idani, Pouya"]
[Black "Decuigniere, Tom"]
[Result "1-0"]
[ECO "B55"]
[WhiteElo "2609"]
[BlackElo "2402"]
[Annotator "TA"]
[PlyCount "71"]
[EventDate "2024.03.02"]
[EventType "swiss"]
[EventCountry "FRA"]
[SourceTitle "playchess.com"]
[Source "ChessBase"]
[SourceQuality "1"]
[TimeControl "40/5400+30:1800+30"]

{[%evp 9,71,0,0,0,7,-3,18,0,0,0,8,7,10,0,0,5,13,4,12,12,31,10,25,26,27,25,14,20,24,0,12,6,48,50,56,48,56,44,66,27,45,9,15,10,8,8,34,0,23,8,156,146,160,164,196,200,283,288,275,301,283,259,288,264]} 1. e4 {[%emt 0:00:03]} c5 {[%emt 0:01:04]} 2. Nf3 {[%emt 0:00:09]} d6 {[%emt 0:00:05]} 3. d4 {[%emt 0:00:08]} cxd4 {[%emt 0:00:06]} 4. Nxd4 {[%emt 0:00:04]} Nf6 {[%emt 0:00:06]} 5. Bd3 {[%emt 0:00:36]} g6 {[%emt 0:02:20]} 6. c4 {[%emt 0:00:17]} Bg7 {[%emt 0:00:32]} 7. h3 {[%emt 0:03:06]} Nc6 {[%emt 0:02:27]} 8. Be3 {[%emt 0:00:30] The position is equal.} Ng4 {[%emt 0:03:42]} 9. hxg4 {[%emt 0:00:14] [#] Be2 would now be deadly.} Bxd4 {[%emt 0:00:06]} 10. Bxd4 {[%emt 0:06:36]} Nxd4 {[%emt 0:00:06]} 11. Nc3 {[%emt 0:01:14]} e5 {[%emt 0:01:43]} 12. f3 {[%emt 0:02:49]} Be6 {[%emt 0:03:54]} 13. Qd2 {[%emt 0:02:47]} Rc8 {[%emt 0:05:04]} 14. b3 {[%emt 0:00:21]} a6 {[%emt 0:02:44]} 15. Rd1 {[%emt 0:06:33]} Qa5 {[%emt 0:09:34]} 16. Ne2 {[%emt 0:01:49]} Qxd2+ {[%emt 0:00:22]} 17. Rxd2 {[%emt 0:00:58]} Nxe2 {[%emt 0:00:43]} 18. Bxe2 {[%emt 0:00:24]} Ke7 {[%emt 0:00:48]} 19. Kf2 {[%emt 0:05:35]} h6 {[%emt 0:04:53]} 20. g3 {[%emt 0:01:36]} Rcd8 {[%emt 0:11:15]} 21. f4 {[%emt 0:01:58]} Bd7 {[%emt 0:01:10]} 22. Ke3 {[%emt 0:02:20]} Bc6 {[%emt 0:01:42]} 23. Bf3 {[%emt 0:03:39]} Rc8 {[%emt 0:05:06]} 24. f5 {[%emt 0:16:36] White is more active.} b5 {[%emt 0:02:33]} 25. Rdh2 {[%emt 0:16:22][%cal Og4g5]} bxc4 {[%emt 0:06:05]} 26. bxc4 {[%emt 0:00:11]} Ba8 {[%emt 0:02:41]} 27. Be2 {[%emt 0:01:14]} Rhg8 {[%emt 0:00:21]} 28. Rd1 {[%emt 0:06:59]} h5 {[%emt 0:05:23]} 29. f6+ {[%emt 0:00:43]} Kxf6 {[%emt 0:02:54]} (29... Kd7 $11 {remains equal.}) 30. Rxd6+ $16 {[%emt 0:00:05]} Ke7 {[%emt 0:00:07]} 31. Rxa6 {[%emt 0:00:05]} hxg4 {[%emt 0:00:07]} 32. Ra7+ {[%emt 0:00:43]} ({And not} 32. Bxg4 Rxc4 33. Ra7+ Kf6 34. Rf2+ Kg5 $19) 32... Kf6 {[%emt 0:03:28]} (32... Kd6 {keeps fighting.} 33. Rxf7 Rcf8) 33. Rf2+ $18 {[%emt 0:00:35] White has a decisive advantage.} ({Inferior is} 33. Bxg4 Rxc4 34. Rf2+ Kg5 $19) 33... Kg5 {[%emt 0:00:00]} 34. Rfxf7 {[%emt 0:00:38]} ({Weaker is} 34. Raxf7 Rc5 $16) 34... Rh8 {[%emt 0:01:25]} 35. Ra5 {[%emt 0:01:17]} Rce8 {[%emt 0:00:10]} 36. Rf4 {[%emt 0:00:10] Weighted Error Value: White=0.10 (very precise) /Black=0.20 (precise) .  Mistake:       	---       	Black=2      Inaccurate:     	White=3     	Black=2      OK:         	White=12    	Black=12     Best:        	White=3     	Black=2} 1-0

[Event "40th Cappelle Open 2024"]
[Site "Cappelle-la-Grande"]
[Date "2024.03.06"]
[Round "7.6"]
[White "Agdelen, Huseyin Can"]
[Black "Gopal G.N."]
[Result "1/2-1/2"]
[ECO "B94"]
[WhiteElo "2408"]
[BlackElo "2575"]
[Annotator "TA"]
[PlyCount "41"]
[EventDate "2024.03.02"]
[EventType "swiss"]
[EventCountry "FRA"]
[SourceTitle "playchess.com"]
[Source "ChessBase"]
[SourceQuality "1"]
[TimeControl "40/5400+30:1800+30"]

{[%evp 11,41,15,17,18,22,14,23,31,19,19,30,25,13,11,33,0,0,0,0,0,0,0,0,0,25,27,39,32,36,22,38,0]} 1. e4 {[%emt 0:00:04]} c5 {[%emt 0:00:03]} 2. Nf3 {[%emt 0:00:04]} d6 {[%emt 0:00:04]} 3. d4 {[%emt 0:00:05]} cxd4 {[%emt 0:00:04]} 4. Nxd4 {[%emt 0:00:06]} Nf6 {[%emt 0:00:05]} 5. Nc3 {[%emt 0:00:05]} a6 {[%emt 0:00:04]} 6. Bg5 {[%emt 0:01:13]} Nbd7 {[%emt 0:00:08]} 7. Qe2 {[%emt 0:01:08]} h6 {[%emt 0:01:05]} 8. Bh4 {[%emt 0:00:40]} g6 {[%emt 0:00:46]} 9. f4 {[%emt 0:04:39] White has an edge.} e5 {[%emt 0:00:38]} 10. fxe5 {[%emt 0:00:09]} dxe5 {[%emt 0:00:18] [#]} 11. O-O-O $1 {[%emt 0:01:00]} Qc7 {[%emt 0:04:17]} (11... exd4 12. e5 dxc3 (12... d3 $2 13. Rxd3 Qe7 14. Re3 $18) 13. exf6+ $18) 12. Nb3 {[%emt 0:00:27]} b5 $1 {[%emt 0:01:09]} 13. Rxd7 {[%emt 0:00:36]} Nxd7 {[%emt 0:00:03]} 14. Nd5 {[%emt 0:00:05]} Qb8 {[%emt 0:05:08]} 15. Na5 {[%emt 0:02:03] A dynamic duo of knights.} Bg7 {[%emt 0:16:21]} 16. Qf3 {[%emt 0:01:41][%cal Of1c4] [#] Bc4! would now be deadly.} O-O {[%emt 0:31:02]} 17. Be7 $1 {[%emt 0:00:23]} Bb7 {[%emt 0:01:47][%cal Ob7d5] Prevents Nc6. ...Bxd5! is the strong threat.} 18. Bxf8 {[%emt 0:03:41]} Bxf8 {[%emt 0:00:14]} 19. Nxb7 {[%emt 0:03:28]} Qxb7 {[%emt 0:00:01]} 20. Be2 {[%emt 0:01:28]} Nb6 {[%emt 0:02:58]} 21. Rd1 {[%emt 0:11:16] Weighted Error Value: White=0.04 (flawless) /Black=0.03 (flawless) .  Inaccurate:     	White=2     	---        OK:         	White=7     	Black=7      Best:        	White=2     	---        Strong:       	White=1     	Black=1} 1/2-1/2